fUSD/lending_fUSD_20250615
["ID","MTS","AMOUNT","RATE_DAILY","PERIOD"]
[366047754,1750031461388,-3012.13,0.00016602,2]
[366047755,1750031461398,-987.53,0.00016602,2]
[366047756,1750031461408,-1609.25,0.00016602,2]
[366047757,1750031461418,-490.0,0.00016602,2]
[366047758,1750031461428,-205.975961,0.00016602,2]
[366047759,1750031461438,-973.439701,0.00016602,2]
[366047760,1750031461448,-490.0,0.00016602,2]
[366047761,1750031461458,-973.439701,0.00016602,2]
[366047762,1750031461468,-490.0,0.00016602,2]
[366047763,1750031461477,-1629.98,0.00016602,2]
[366047764,1750031461488,-248.469221,0.00016602,2]
[366047765,1750031461499,-490.0,0.00016602,2]
[366047766,1750031461509,-248.469221,0.00016602,2]
[366047767,1750031461519,-248.469221,0.00016602,2]
[366047768,1750031461531,-350.0,0.00016602,2]
[366047769,1750031461542,-973.439701,0.00016602,2]
[366047770,1750031461553,-490.0,0.00016602,2]
[366047771,1750031461565,-973.439701,0.00016602,2]
[366047772,1750031461576,-490.0,0.00016602,2]
[366047773,1750031461587,-490.0,0.00016602,2]
[366047774,1750031461597,-2935.01,0.00016602,2]
[366047775,1750031461607,-809.77,0.00016602,2]
[366047776,1750031461617,-636.55,0.00016602,2]
[366047777,1750031461627,-248.469221,0.00016602,2]
[366047778,1750031461637,-248.469221,0.00016602,2]
[366047779,1750031461646,-248.469221,0.00016602,2]
[366047780,1750031461656,-1657.95,0.00016602,2]
[366047781,1750031461667,-490.0,0.00016602,2]
[366047782,1750031461676,-490.0,0.00016602,2]
[366047783,1750031461686,-544.44,0.00016602,2]
[366047784,1750031461696,-490.0,0.00016602,2]
[366047785,1750031462055,-2481.75,0.00016602,2]
[366047786,1750031462083,-490.0,0.00016602,2]
[366047787,1750031462094,-490.0,0.00016602,2]
[366047788,1750031462104,-490.0,0.00016602,2]
[366047789,1750031462114,-490.0,0.00016602,2]
[366047790,1750031462124,-1484.24,0.00016602,2]
[366047791,1750031462144,-686.18,0.00016602,2]
[366047792,1750031462155,-490.0,0.00016602,2]
[366047793,1750031462166,-490.0,0.00016602,2]
[366047794,1750031462178,-490.0,0.00016602,2]
[366047795,1750031462189,-490.0,0.00016602,2]
[366047796,1750031462200,-490.0,0.00016602,2]
[366047797,1750031462212,-690.48,0.00016602,2]
[366047798,1750031462234,-553.46061882,0.00016602,2]
[366047799,1750031462261,-1636.31,0.00016602,2]
[366047800,1750031462273,-303.42556896,0.00016602,2]
[366047801,1750031462284,-1823.67,0.00016602,2]
[366047802,1750031462299,-1793.54,0.00016602,2]
[366047803,1750031462311,-490.0,0.00016602,2]
[366047804,1750031462322,-1107.69,0.00016602,2]
[366047805,1750031462332,-490.0,0.00016602,2]
[366047806,1750031462341,-490.0,0.00016602,2]
[366047807,1750031462352,-1779.41,0.00016602,2]
[366047808,1750031462364,-608.5,0.00016602,2]
[366047809,1750031462375,-490.0,0.00016602,2]
[366047810,1750031462385,-694.26,0.00016602,2]
[366047811,1750031462396,-527.37,0.00016602,2]
[366047812,1750031462408,-490.0,0.00016602,2]
[366047813,1750031462419,-490.0,0.00016602,2]
[366047814,1750031462431,-834.56,0.00016602,2]
[366047815,1750031462443,-498.85,0.00016602,2]
[366047816,1750031462454,-1940.28,0.00016602,2]
[366047817,1750031462465,-490.0,0.00016602,2]
[366047818,1750031462476,-490.0,0.00016602,2]
[366047819,1750031462487,-1207.94,0.00016602,2]
[366047820,1750031462500,-490.0,0.00016602,2]
[366047821,1750031462511,-1218.47,0.00016602,2]
[366047822,1750031462522,-633.8,0.00016602,2]
[366047823,1750031462532,-490.0,0.00016602,2]
[366047824,1750031462543,-490.0,0.00016602,2]
[366047825,1750031462554,-490.0,0.00016602,2]
[366047826,1750031462565,-490.0,0.00016602,2]
[366047827,1750031462576,-490.0,0.00016602,2]
[366047828,1750031462586,-826.01,0.00016602,2]
[366047829,1750031462597,-644.8,0.00016602,2]
[366047830,1750031462608,-601.18,0.00016602,2]
[366047831,1750031462618,-1734.42,0.00016602,2]
[366047832,1750031462628,-490.0,0.00016602,2]
[366047833,1750031462639,-490.0,0.00016602,2]
[366047834,1750031462650,-490.0,0.00016602,2]
[366047835,1750031462660,-172.39921267,0.00016602,2]
[366047836,1750031462671,-667.6,0.00016602,2]
[366047837,1750031462681,-2218.7,0.00016602,2]
[366047838,1750031462692,-1912.51,0.00016602,2]
[366047839,1750031462703,-151.0,0.00016602,2]
[366047840,1750031462714,-792.87,0.00016602,2]
[366047841,1750031462724,-151.0,0.00016602,2]
[366047842,1750031462735,-151.0,0.00016602,2]
[366047843,1750031462745,-1369.73,0.00016602,2]
[366047844,1750031462757,-490.0,0.00016602,2]
[366047845,1750031462768,-587.9,0.00016602,2]
[366047846,1750031462786,-151.0,0.00016602,2]
[366047847,1750031462797,-767.94,0.00016602,2]
[366047848,1750031462808,-151.0,0.00016602,2]
[366047849,1750031462819,-151.0,0.00016602,2]
[366047850,1750031462830,-490.0,0.00016602,2]
[366047851,1750031462841,-755.91,0.00016602,2]
[366047852,1750031462851,-25286.03,0.00016602,2]
[366047853,1750031462862,-490.0,0.00016602,2]
[366047854,1750031462873,-1394.66,0.00016602,2]
[366047855,1750031462884,-500.0,0.00016602,2]
[366047856,1750031462895,-527.76,0.00016602,2]
[366047857,1750031462906,-1115.68,0.00016602,2]
[366047858,1750031462917,-628.0,0.00016602,2]
[366047859,1750031462928,-490.0,0.00016602,2]
[366047860,1750031462939,-22312.9,0.00016602,2]
[366047861,1750031462950,-490.0,0.00016602,2]
[366047862,1750031462961,-565.56,0.00016602,2]
[366047863,1750031462971,-872.69,0.00016602,2]
[366047864,1750031462982,-490.0,0.00016602,2]
[366047865,1750031462994,-9810.78,0.00016602,2]
[366047866,1750031463007,-490.0,0.00016602,2]
[366047867,1750031463017,-2634.91,0.00016602,2]
[366047868,1750031463028,-1796.59,0.00016602,2]
[366047869,1750031463040,-1106.16,0.00016602,2]
[366047870,1750031463050,-490.0,0.00016602,2]
[366047871,1750031463061,-490.0,0.00016602,2]
[366047872,1750031463072,-490.0,0.00016602,2]
[366047873,1750031463083,-371.86,0.00016602,2]
[366047874,1750031463094,-2177.36,0.00016602,2]
[366047875,1750031463106,-646.03,0.00016602,2]
[366047876,1750031463117,-490.0,0.00016602,2]
[366047877,1750031463128,-490.0,0.00016602,2]
[366047878,1750031463139,-350.447723,0.00016602,2]
[366047879,1750031463150,-413.30830181,0.00016602,2]
[366047880,1750031463161,-350.447723,0.00016602,2]
[366047881,1750031463172,-490.0,0.00016602,2]
[366047882,1750031463184,-490.0,0.00016602,2]
[366047883,1750031463194,-1251.43,0.00016602,2]
[366047884,1750031463211,-350.447723,0.00016602,2]
[366047885,1750031463225,-151.0,0.00016602,2]
[366047886,1750031463236,-3234.31,0.00016602,2]
[366047887,1750031463246,-578.64,0.00016602,2]
[366047888,1750031463260,-1050.08,0.00016602,2]
[366047889,1750031463271,-490.0,0.00016602,2]
[366047890,1750031463282,-490.0,0.00016602,2]
[366047891,1750031463293,-2065.37,0.00016602,2]
[366047892,1750031463304,-350.447723,0.00016602,2]
[366047893,1750031463316,-350.447723,0.00016602,2]
[366047894,1750031463326,-490.0,0.00016602,2]
[366047895,1750031463337,-151.0,0.00016602,2]
[366047896,1750031463348,-350.447723,0.00016602,2]
[366047897,1750031463359,-7001.32,0.00016602,2]
[366047898,1750031463370,-521.9,0.00016602,2]
[366047899,1750031463381,-490.0,0.00016602,2]
[366047900,1750031463391,-705.66,0.00016602,2]
[366047901,1750031463402,-218.55,0.00016602,2]
[366047902,1750031463413,-490.0,0.00016602,2]
[366047903,1750031463424,-2007.78,0.00016602,2]
[366047904,1750031463434,-490.0,0.00016602,2]
[366047905,1750031463445,-490.0,0.00016602,2]
[366047906,1750031463456,-1912.29,0.00016602,2]
[366047907,1750031463467,-490.0,0.00016602,2]
[366047908,1750031463477,-570.05,0.00016602,2]
[366047909,1750031463488,-1730.8,0.00016602,2]
[366047910,1750031463500,-760.31,0.00016602,2]
[366047911,1750031463511,-490.0,0.00016602,2]
[366047912,1750031463521,-528.55,0.00016602,2]
[366047913,1750031463532,-563.96,0.00016602,2]
[366047914,1750031463543,-784.59,0.00016602,2]
[366047915,1750031463553,-1682.08,0.00016602,2]
[366047916,1750031463564,-490.0,0.00016602,2]
[366047917,1750031463575,-19023.79,0.00016602,2]
[366047918,1750031463585,-490.0,0.00016602,2]
[366047919,1750031463596,-1140.05,0.00016602,2]
[366047920,1750031463608,-1231.62,0.00016602,2]
[366047921,1750031463618,-859.32,0.00016602,2]
[366047922,1750031463628,-490.0,0.00016602,2]
[366047923,1750031463639,-490.0,0.00016602,2]
[366047924,1750031463649,-151.0,0.00016602,2]
[366047925,1750031463659,-490.0,0.00016602,2]
[366047926,1750031463670,-151.0,0.00016602,2]
[366047927,1750031463680,-490.0,0.00016602,2]
[366047928,1750031463691,-5107.78,0.00016602,2]
[366047929,1750031463702,-151.0,0.00016602,2]
[366047930,1750031463711,-490.0,0.00016602,2]
[366047931,1750031463722,-2200.34,0.00016602,2]
[366047932,1750031463732,-2085.54,0.00016602,2]
[366047933,1750031463743,-991.0,0.00016602,2]
[366047934,1750031463754,-671.73,0.00016602,2]
[366047935,1750031463767,-777.03,0.00016602,2]
[366047936,1750031463778,-490.0,0.00016602,2]
[366047937,1750031463789,-490.0,0.00016602,2]
[366047938,1750031463799,-2053.55,0.00016602,2]
[366047939,1750031463810,-2726.36,0.00016602,2]
[366047940,1750031463820,-3956.46,0.00016602,2]
[366047941,1750031463830,-931.48,0.00016602,2]
[366047942,1750031463840,-1090.12,0.00016602,2]
[366047943,1750031463849,-470.0,0.00016602,2]
[366047944,1750031463860,-703.39,0.00016602,2]
[366047945,1750031463870,-490.0,0.00016602,2]
[366047946,1750031463881,-10219.34,0.00016602,2]
[366047947,1750031463891,-826.19,0.00016602,2]
[366047948,1750031463902,-710.33,0.00016602,2]
[366047949,1750031463912,-490.0,0.00016602,2]
[366047950,1750031463922,-2679.35,0.00016602,2]
[366047951,1750031463932,-2425.04,0.00016602,2]
[366047952,1750031463942,-490.3,0.00016602,2]
[366047953,1750031463952,-490.0,0.00016602,2]
[366047954,1750031463963,-7542.38,0.00016602,2]
[366047955,1750031463973,-151.0,0.00016602,2]
[366047956,1750031463983,-490.0,0.00016602,2]
[366047957,1750031463993,-2711.94,0.00016602,2]
[366047958,1750031464005,-490.0,0.00016602,2]
[366047959,1750031464015,-490.0,0.00016602,2]
[366047960,1750031464025,-490.0,0.00016602,2]
[366047961,1750031464036,-767.6,0.00016602,2]
[366047962,1750031464046,-1582.67,0.00016602,2]
[366047963,1750031464057,-756.82,0.00016602,2]
[366047964,1750031464067,-490.0,0.00016602,2]
[366047965,1750031464077,-4294.22,0.00016602,2]
[366047966,1750031464088,-3292.6,0.00016602,2]
[366047967,1750031464098,-490.0,0.00016602,2]
[366047968,1750031464109,-490.0,0.00016602,2]
[366047969,1750031464119,-490.0,0.00016602,2]
[366047970,1750031464129,-6431.92,0.00016602,2]
[366047971,1750031464138,-490.0,0.00016602,2]
[366047972,1750031464149,-1319.04,0.00016602,2]
[366047973,1750031464161,-287.2,0.00016602,2]
[366047974,1750031464171,-490.0,0.00016602,2]
[366047975,1750031464181,-490.0,0.00016602,2]
[366047976,1750031464190,-490.0,0.00016602,2]
[366047977,1750031464201,-1584.55,0.00016602,2]
[366047978,1750031464212,-2838.45,0.00016602,2]
[366047979,1750031464223,-490.0,0.00016602,2]
[366047980,1750031464234,-490.0,0.00016602,2]
[366047981,1750031464244,-490.0,0.00016602,2]
[366047982,1750031464256,-3001.46,0.00016602,2]
[366047983,1750031464267,-2623.2,0.00016602,2]
[366047984,1750031464278,-708.42,0.00016602,2]
[366047985,1750031464288,-490.0,0.00016602,2]
[366047986,1750031464298,-944.52,0.00016602,2]
[366047987,1750031464308,-1358.28,0.00016602,2]
[366047988,1750031464318,-832.58,0.00016602,2]
[366047989,1750031464328,-2399.55,0.00016602,2]
[366047990,1750031464338,-490.0,0.00016602,2]
[366047991,1750031464348,-603.33,0.00016602,2]
[366047992,1750031464359,-2372.43,0.00016602,2]
[366047993,1750031464368,-490.0,0.00016602,2]
[366047994,1750031464379,-490.0,0.00016602,2]
[366047995,1750031464389,-490.0,0.00016602,2]
[366047996,1750031464399,-490.0,0.00016602,2]
[366047997,1750031464409,-490.0,0.00016602,2]
[366047998,1750031464419,-6155.19,0.00016602,2]
[366047999,1750031464428,-1422.84,0.00016602,2]
[366048000,1750031464439,-9191.94,0.00016602,2]
[366048001,1750031464448,-12184.98,0.00016602,2]
[366048002,1750031464458,-490.0,0.00016602,2]
[366048003,1750031464468,-1039.89,0.00016602,2]
[366048004,1750031464478,-490.0,0.00016602,2]
[366048005,1750031464488,-3024.73,0.00016602,2]
[366048006,1750031464498,-1719.53,0.00016602,2]
[366048007,1750031464508,-911.6,0.00016602,2]
[366048008,1750031464518,-498.39,0.00016602,2]
[366048009,1750031464528,-1606.55,0.00016602,2]
[366048010,1750031464538,-1452.65,0.00016602,2]
[366048011,1750031464548,-3804.47,0.00016602,2]
[366048012,1750031464557,-713.28,0.00016602,2]
[366048013,1750031464567,-490.0,0.00016602,2]
[366048014,1750031464577,-490.0,0.00016602,2]
[366048015,1750031464587,-490.0,0.00016602,2]
[366048016,1750031464597,-490.0,0.00016602,2]
[366048017,1750031464606,-490.0,0.00016602,2]
[366048018,1750031464616,-2260.67,0.00016602,2]
[366048019,1750031464625,-9921.87,0.00016602,2]
[366048020,1750031464635,-1487.41,0.00016602,2]
[366048021,1750031464645,-1956.11,0.00016602,2]
[366048022,1750031464655,-490.0,0.00016602,2]
[366048023,1750031464665,-1935.44,0.00016602,2]
[366048024,1750031464675,-490.0,0.00016602,2]
[366048025,1750031464685,-490.0,0.00016602,2]
[366048026,1750031464694,-1143.53,0.00016602,2]
[366048027,1750031464704,-490.0,0.00016602,2]
[366048028,1750031464872,-490.0,0.00016602,2]
[366048029,1750031464882,-490.0,0.00016602,2]
[366048030,1750031464892,-1711.57,0.00016602,2]
[366048031,1750031464902,-151.0,0.00016602,2]
[366048032,1750031464912,-490.0,0.00016602,2]
[366048033,1750031464921,-1928.31,0.00016602,2]
[366048034,1750031464931,-151.0,0.00016602,2]
[366048035,1750031464940,-490.0,0.00016602,2]
[366048036,1750031464950,-151.0,0.00016602,2]
[366048037,1750031464960,-2309.31,0.00016602,2]
[366048038,1750031464969,-2890.82,0.00016602,2]
[366048039,1750031464979,-153.817736,0.00016602,2]
[366048040,1750031464989,-2314.68,0.00016602,2]
[366048041,1750031465001,-5305.46,0.00016602,2]
[366048042,1750031465010,-1873.31,0.00016602,2]
[366048043,1750031465020,-1782.54,0.00016602,2]
[366048044,1750031465030,-297.552025,0.00016602,2]
[366048045,1750031465039,-748.12,0.00016602,2]
[366048046,1750031465049,-297.552025,0.00016602,2]
[366048047,1750031465059,-490.0,0.00016602,2]
[366048048,1750031465069,-297.552025,0.00016602,2]
[366048049,1750031465079,-490.14,0.00016602,2]
[366048050,1750031465088,-490.0,0.00016602,2]
[366048051,1750031465098,-530.1,0.00016602,2]
[366048052,1750031465108,-497.28974,0.00016602,2]
[366048053,1750031465117,-722.37,0.00016602,2]
[366048054,1750031465127,-497.28974,0.00016602,2]
[366048055,1750031465137,-497.28974,0.00016602,2]
[366048056,1750031465147,-297.552025,0.00016602,2]
[366048057,1750031465156,-297.552025,0.00016602,2]
[366048058,1750031465165,-490.0,0.00016602,2]
[366048059,1750031465175,-297.552025,0.00016602,2]
[366048060,1750031465184,-2600.81,0.00016602,2]
[366048061,1750031465195,-497.28974,0.00016602,2]
[366048062,1750031465205,-497.28974,0.00016602,2]
[366048063,1750031465215,-490.0,0.00016602,2]
[366048064,1750031465229,-497.28974,0.00016602,2]
[366048065,1750031465238,-490.0,0.00016602,2]
[366048066,1750031465247,-490.0,0.00016602,2]
[366048067,1750031465258,-1039.7,0.00016602,2]
[366048068,1750031465269,-151.63081,0.00016602,2]
[366048069,1750031465279,-490.0,0.00016602,2]
[366048070,1750031465288,-1325.17,0.00016602,2]
[366048071,1750031465297,-611.83,0.00016602,2]
[366048072,1750031465307,-300.0,0.00016602,2]
[366048073,1750031465317,-490.0,0.00016602,2]
[366048074,1750031465327,-492.11,0.00016602,2]
[366048075,1750031465336,-1795.29,0.00016602,2]
[366048076,1750031465345,-490.0,0.00016602,2]
[366048077,1750031465354,-490.0,0.00016602,2]
[366048078,1750031465364,-1272.28,0.00016602,2]
[366048079,1750031465373,-634.88,0.00016602,2]
[366048080,1750031465383,-490.0,0.00016602,2]
[366048081,1750031465392,-1442.79,0.00016602,2]
[366048082,1750031465402,-490.0,0.00016602,2]
[366048083,1750031465411,-490.0,0.00016602,2]
[366048084,1750031465421,-490.0,0.00016602,2]
[366048085,1750031465431,-559.54,0.00016602,2]
[366048086,1750031465440,-565.77,0.00016602,2]
[366048087,1750031465450,-4463.42,0.00016602,2]
[366048088,1750031465459,-490.0,0.00016602,2]
[366048089,1750031465468,-1682.4,0.00016602,2]
[366048090,1750031465478,-490.0,0.00016602,2]
[366048091,1750031465487,-1183.83,0.00016602,2]
[366048092,1750031465497,-490.0,0.00016602,2]
[366048093,1750031465508,-490.0,0.00016602,2]
[366048094,1750031465517,-1637.24,0.00016602,2]
[366048095,1750031465526,-490.0,0.00016602,2]
[366048096,1750031465535,-5835.31,0.00016602,2]
[366048097,1750031465545,-3464.14,0.00016602,2]
[366048098,1750031465555,-490.0,0.00016602,2]
[366048099,1750031465564,-2740.94,0.00016602,2]
[366048100,1750031465574,-1999.98,0.00016602,2]
[366048101,1750031465583,-159.73365121,0.00016602,2]
[366048102,1750031465593,-287.740882,0.00016602,2]
[366048103,1750031465602,-287.740882,0.00016602,2]
[366048104,1750031465611,-774.88,0.00016602,2]
[366048105,1750031465622,-1168.66,0.00016602,2]
[366048106,1750031465631,-287.740882,0.00016602,2]
[366048107,1750031465641,-490.0,0.00016602,2]
[366048108,1750031465650,-490.0,0.00016602,2]
[366048109,1750031465659,-1032.51,0.00016602,2]
[366048110,1750031465668,-151.0,0.00016602,2]
[366048111,1750031465678,-1761.41,0.00016602,2]
[366048112,1750031465687,-224.697828,0.00016602,2]
[366048113,1750031465696,-16487.0972494,0.00016602,2]
[366048114,1750031466355,-199.29134405,0.00016438,2]
[366048115,1750031466365,-4457.2527506,0.00016602,2]
[366048116,1750031466375,-490.0,0.00016602,2]
[366048117,1750031466384,-577.02683123,0.00016602,2]
[366048118,1750031466395,-287.740882,0.00016602,2]
[366048119,1750031466405,-2920.52,0.00016602,2]
[366048120,1750031466415,-287.740882,0.00016602,2]
[366048121,1750031466425,-1618.6,0.00016602,2]
[366048122,1750031466435,-287.740882,0.00016602,2]
[366048123,1750031466444,-490.0,0.00016602,2]
[366048124,1750031466454,-960.81,0.00016602,2]
[366048125,1750031466464,-2202.04,0.00016602,2]
[366048126,1750031466474,-151.0,0.00016602,2]
[366048127,1750031466483,-3838.61,0.00016602,2]
[366048128,1750031466493,-560.67,0.00016602,2]
[366048129,1750031466507,-740.78,0.00016602,2]
[366048130,1750031466517,-490.0,0.00016602,2]
[366048131,1750031466528,-2018.38,0.00016602,2]
[366048132,1750031466540,-490.0,0.00016602,2]
[366048133,1750031466550,-151.0,0.00016602,2]
[366048134,1750031466560,-490.0,0.00016602,2]
[366048135,1750031466570,-1013.85,0.00016602,2]
[366048136,1750031466579,-151.0,0.00016602,2]
[366048137,1750031466590,-151.0,0.00016602,2]
[366048138,1750031466600,-1941.26,0.00016602,2]
[366048139,1750031466609,-6259.73,0.00016602,2]
[366048140,1750031466619,-490.0,0.00016602,2]
[366048141,1750031466628,-490.0,0.00016602,2]
[366048142,1750031466638,-151.0,0.00016602,2]
[366048143,1750031466647,-490.0,0.00016602,2]
[366048144,1750031466656,-151.0,0.00016602,2]
[366048145,1750031466666,-151.0,0.00016602,2]
[366048146,1750031466675,-2632.31,0.00016602,2]
[366048147,1750031466685,-495.2,0.00016602,2]
[366048148,1750031466695,-2813.06,0.00016602,2]
[366048149,1750031466704,-990.05757781,0.00016602,2]
[366048150,1750031466717,-2100.05512954,0.00016602,2]
[366048151,1750031466729,-3310.35729265,0.00016602,2]
[366048152,1750031466741,-1005.87281263,0.00016602,2]
[366048153,1750031466763,-993.77509956,0.00016602,2]
[366048154,1750031466775,-504.07208781,0.00016602,2]
[366048155,1750031466784,-231.726696,0.00016602,2]
[366048156,1750031466794,-231.726696,0.00016602,2]
[366048157,1750031466803,-301.87067266,0.00016602,2]
[366048158,1750031467723,-490.0,0.00016438,2]
[366048159,1750031467734,-87.13,0.00016438,2]
[366048160,1750031467746,-62.87,0.00016438,2]
[366048161,1750031467756,-1061.56932734,0.00016602,2]
[366048162,1750031467766,-490.0,0.00016602,2]
[366048163,1750031467776,-231.726696,0.00016602,2]
[366048164,1750031467787,-490.0,0.00016602,2]
[366048165,1750031467796,-490.0,0.00016602,2]
[366048166,1750031467806,-231.726696,0.00016602,2]
[366048167,1750031467815,-490.0,0.00016602,2]
[366048168,1750031467825,-3717.66,0.00016602,2]
[366048169,1750031467835,-231.726696,0.00016602,2]
[366048170,1750031467844,-231.726696,0.00016602,2]
[366048171,1750031467854,-490.0,0.00016602,2]
[366048172,1750031467864,-2182.26,0.00016602,2]
[366048173,1750031467873,-2125.95925586,0.00016602,2]
[366048174,1750031467887,-100.29074414,0.00016602,2]
[366048175,1750031467896,-293.60723246,0.00016602,2]
[366048176,1750031467913,-199.25276754,0.00016602,2]
[366048177,1750031467923,-220.74723246,0.00016602,2]
[366048178,1750031467941,-2375.58276754,0.00016602,2]
[366048179,1750031467951,-989.08935319,0.00016602,2]
[366048180,1750031468223,-546.1,0.00016602,2]
[366048181,1750031468335,-591.32064681,0.00016602,2]
[366048182,1750031468346,-1128.88023465,0.00016602,2]
[366048183,1750031469039,-490.0,0.00016438,2]
[366048184,1750031469048,-528.73,0.00016438,2]
[366048185,1750031469058,-490.0,0.00016438,2]
[366048186,1750031469068,-330.20976535,0.00016602,2]
[366048187,1750031469078,-490.0,0.00016602,2]
[366048188,1750031469087,-490.0,0.00016602,2]
[366048189,1750031469097,-490.0,0.00016602,2]
[366048190,1750031469107,-580.31,0.00016602,2]
[366048191,1750031469117,-2115.89,0.00016602,2]
[366048192,1750031469126,-5014.63,0.00016602,2]
[366048193,1750031469135,-490.0,0.00016602,2]
[366048194,1750031469145,-650.42,0.00016602,2]
[366048195,1750031469155,-490.0,0.00016602,2]
[366048196,1750031469164,-490.0,0.00016602,2]
[366048197,1750031469173,-1443.47,0.00016602,2]
[366048198,1750031469183,-676.79,0.00016602,2]
[366048199,1750031469192,-2974.34,0.00016602,2]
[366048200,1750031469202,-1796.77,0.00016602,2]
[366048201,1750031469211,-5069.95,0.00016602,2]
[366048202,1750031469226,-187.202094,0.00016602,2]
[366048203,1750031469236,-490.0,0.00016602,2]
[366048204,1750031469245,-187.202094,0.00016602,2]
[366048205,1750031469256,-187.202094,0.00016602,2]
[366048206,1750031469265,-490.0,0.00016602,2]
[366048207,1750031469276,-151.0,0.00016602,2]
[366048208,1750031469285,-3161.59,0.00016602,2]
[366048209,1750031469294,-151.0,0.00016602,2]
[366048210,1750031469304,-187.202094,0.00016602,2]
[366048211,1750031469313,-2400.93,0.00016602,2]
[366048212,1750031469323,-490.0,0.00016602,2]
[366048213,1750031469345,-187.202094,0.00016602,2]
[366048214,1750031469355,-1349.61,0.00016602,2]
[366048215,1750031469365,-187.202094,0.00016602,2]
[366048216,1750031469375,-2116.2,0.00016602,2]
[366048217,1750031469384,-490.0,0.00016602,2]
[366048218,1750031469394,-490.0,0.00016602,2]
[366048219,1750031469404,-490.0,0.00016602,2]
[366048220,1750031469414,-490.0,0.00016602,2]
[366048221,1750031469425,-1082.11,0.00016602,2]
[366048222,1750031469435,-490.0,0.00016602,2]
[366048223,1750031469445,-1040.26,0.00016602,2]
[366048224,1750031469455,-490.0,0.00016602,2]
[366048225,1750031469465,-1091.21,0.00016602,2]
[366048226,1750031469474,-490.0,0.00016602,2]
[366048227,1750031469484,-490.0,0.00016602,2]
[366048228,1750031469494,-509.8,0.00016602,2]
[366048229,1750031469504,-2333.17,0.00016602,2]
[366048230,1750031469513,-3860.6,0.00016602,2]
[366048231,1750031469523,-490.0,0.00016602,2]
[366048232,1750031469533,-2724.14,0.00016602,2]
[366048233,1750031469543,-151.0,0.00016602,2]
[366048234,1750031469553,-151.0,0.00016602,2]
[366048235,1750031469563,-490.0,0.00016602,2]
[366048236,1750031469574,-490.0,0.00016602,2]
[366048237,1750031469587,-151.0,0.00016602,2]
[366048238,1750031469597,-490.0,0.00016602,2]
[366048239,1750031469607,-1416.69,0.00016602,2]
[366048240,1750031469618,-4315.03,0.00016602,2]
[366048241,1750031469628,-556.99,0.00016602,2]
[366048242,1750031469640,-490.0,0.00016602,2]
[366048243,1750031469650,-512.53,0.00016602,2]
[366048244,1750031469660,-10744.2,0.00016602,2]
[366048245,1750031469670,-490.0,0.00016602,2]
[366048246,1750031469680,-494.15185274,0.00016602,2]
[366048247,1750031479797,202.0,0.00014631,2]
[366048248,1750031615083,14783.46,0.00015413,2]
[366048249,1750031754826,206.95,0.00015402,2]
[366048250,1750031835858,1000.0,0.00024657,120]
[366048251,1750031892295,203.0,0.00015223,2]
[366048252,1750031900993,2462632.64821012,0.00024,120]
[366048253,1750031972037,400.0,0.00024657,120]